bitfinex/quotes_BTCUSD_20250420
["timestamp","ask_amount","ask_price","bid_price","bid_amount"]
[1745108864342,0.52805281,85032.0,85031.0,0.24029773]
[1745108868310,0.52805281,85032.0,85031.0,0.24022706]
[1745108879958,0.53252297,85032.0,85031.0,0.24022706]
[1745108884332,0.53252297,85032.0,85031.0,0.001]
[1745108884747,0.53252297,85032.0,85031.0,0.23620727]
[1745108910915,0.53252297,85032.0,85031.0,0.23520727]
[1745108929387,0.53252297,85032.0,85030.0,0.01176055]
[1745108929586,0.11944791,85031.0,85030.0,0.01183495]
[1745108929989,0.1311992,85031.0,85030.0,0.01183495]
[1745108934106,0.530886,85031.0,85030.0,0.01183495]
[1745108946014,0.530886,85031.0,85029.0,0.07391251]
[1745108946217,0.530886,85031.0,85029.0,0.07404829]
[1745108947701,0.530886,85031.0,85030.0,0.01176055]
[1745108975673,0.530886,85031.0,85028.0,0.09774061]
[1745108976835,0.530886,85031.0,85030.0,0.01176055]
[1745108992597,0.3996868,85031.0,85030.0,0.40036055]
[1745108992745,0.37862682,85031.0,85030.0,0.40036055]
[1745108993791,0.29166682,85031.0,85030.0,0.40036055]
[1745108994197,0.0473,85055.0,85054.0,0.23514473]
[1745108994374,0.0475,85057.0,85056.0,0.2351392]
[1745108994572,0.16708364,85057.0,85056.0,0.2351392]
[1745108994752,0.16808364,85057.0,85056.0,0.2351392]
[1745108995471,0.12058364,85057.0,85056.0,0.2351392]
[1745108995660,0.12058364,85057.0,85056.0,0.24691535]
[1745109000783,0.16648364,85057.0,85030.0,0.15351523]
[1745109001023,0.01175834,85046.0,85039.0,0.13092]
[1745109001262,0.36637823,85045.0,85040.0,0.01175917]
[1745109001463,0.11944791,85045.0,85042.0,0.23517791]
[1745109001912,0.11944791,85045.0,85042.0,0.2469368]
[1745109002137,0.11944791,85045.0,85042.0,0.23517791]
[1745109002361,0.11944791,85045.0,85042.0,0.2469368]
[1745109003159,0.11944791,85045.0,85042.0,0.00741221]
[1745109003391,0.11944791,85045.0,85042.0,0.24259012]
[1745109003920,0.11944791,85045.0,85042.0,0.2469368]
[1745109004577,0.4089,85044.0,85042.0,0.23517791]
[1745109004838,0.11944791,85043.0,85042.0,0.23517791]
[1745109005254,0.01175889,85042.0,85036.0,0.24695211]
[1745109005436,0.16464791,85041.0,85034.0,0.01176]
[1745109005648,0.01175917,85040.0,85035.0,0.01175986]
[1745109005866,0.52834791,85039.0,85034.0,0.01176]
[1745109006164,0.52834791,85039.0,85037.0,0.23519072]
[1745109007350,0.52834791,85039.0,85036.0,0.24695236]
[1745109010343,0.4089,85038.0,85036.0,0.24695236]
[1745109010637,0.11944791,85037.0,85036.0,0.24695236]
[1745109011042,0.11944791,85037.0,85035.0,0.24695506]
[1745109016171,0.4089,85036.0,85035.0,0.58695506]
[1745109016387,0.52834791,85036.0,85035.0,0.58695506]
[1745109017731,0.53736802,85036.0,85035.0,0.58695506]
[1745109022363,0.86656252,85036.0,85035.0,0.34]
[1745109022611,0.01176,85034.0,85031.0,0.01179821]
[1745109022811,0.1284552,85033.0,85031.0,0.01179821]
[1745109023186,0.1284552,85033.0,85030.0,0.001]
[1745109023187,0.23520556,85032.0,85030.0,0.001]
[1745109023400,0.11944791,85031.0,85030.0,0.001]
[1745109023732,0.1284552,85031.0,85030.0,0.01296869]
[1745109024193,0.1284552,85031.0,85030.0,0.001]
[1745109024610,0.12851902,85031.0,85030.0,0.001]
[1745109025217,0.14405987,85031.0,85030.0,0.001]
[1745109025422,0.19035987,85031.0,85030.0,0.001]
[1745109025906,0.23645987,85031.0,85030.0,0.001]
[1745109026371,0.25840695,85031.0,85030.0,0.001]
[1745109026602,0.0463,85021.0,85018.0,0.23524209]
[1745109026828,0.52834791,85020.0,85017.0,0.23524525]
[1745109027057,0.537329,85020.0,85017.0,0.24727851]
[1745109027525,0.537329,85020.0,85017.0,0.23524525]
[1745109028064,0.537329,85020.0,85016.0,0.0008428]
[1745109028065,0.2470036,85019.0,85016.0,0.0008428]
[1745109028262,0.13398876,85018.0,85016.0,0.0008428]
[1745109028506,0.14294027,85018.0,85016.0,0.0008428]
[1745109030770,0.0496,85017.0,85016.0,0.0008428]
[1745109031046,0.16904791,85017.0,85016.0,0.0008428]
[1745109031270,0.17898706,85017.0,85016.0,0.0008428]
[1745109033948,0.58788706,85017.0,85016.0,0.0008428]
[1745109034745,0.58485914,85017.0,85016.0,0.0008428]
[1745109036810,0.63455914,85017.0,85016.0,0.0008428]
[1745109037656,0.63555914,85017.0,85016.0,0.0008428]
[1745109046309,0.63555914,85017.0,85014.0,0.2478586]
[1745109046532,0.11944791,85016.0,85014.0,0.2478586]
[1745109046824,0.00707377,85015.0,85014.0,0.2478586]
[1745109047026,0.12652168,85015.0,85014.0,0.2478586]
[1745109051329,0.53542168,85015.0,85014.0,0.2478586]
[1745109052381,0.53542168,85015.0,85014.0,0.0008428]
[1745109057624,0.54643173,85015.0,85014.0,0.0008428]
[1745109061296,0.54743173,85015.0,85014.0,0.0008428]
[1745109061861,0.53642168,85015.0,85014.0,0.0008428]
[1745109074757,0.53642168,85015.0,85014.0,0.0006186]
[1745109074947,0.53642168,85015.0,85014.0,0.23587396]
[1745109077095,0.55844816,85015.0,85014.0,0.23587396]
[1745109079260,0.55844816,85015.0,85014.0,0.0006186]
[1745109082427,0.79370076,85015.0,85014.0,0.0006186]
[1745109083564,0.80824161,85015.0,85014.0,0.0006186]
[1745109083746,0.81650078,85015.0,85014.0,0.0006186]
[1745109083995,0.7944743,85015.0,85014.0,0.0006186]
[1745109085246,0.24703266,85009.0,85005.0,0.34]
[1745109085383,0.11944791,85008.0,85005.0,0.35176401]
[1745109085583,0.01176373,85007.0,85004.0,0.25866741]
[1745109085810,0.11944791,85006.0,85004.0,0.24704651]
[1745109086212,0.00882237,85005.0,85004.0,0.58704651]
[1745109086413,0.12827028,85005.0,85004.0,0.58704651]
[1745109086608,0.53717028,85005.0,85004.0,0.35176415]
[1745109087385,0.53717028,85005.0,85003.0,0.01176429]
[1745109087386,0.53725003,85005.0,85003.0,0.34]
[1745109087702,0.11944791,85004.0,85003.0,0.34]
[1745109087908,0.11944791,85004.0,85003.0,0.35182261]
[1745109088142,0.12827028,85004.0,85003.0,0.35182261]
[1745109090825,0.12927028,85004.0,85003.0,0.35182261]
[1745109091766,0.12927028,85004.0,85003.0,0.01182261]
[1745109092108,0.12927028,85004.0,85002.0,0.01176442]
[1745109092309,0.12927028,85004.0,85003.0,0.34]
[1745109092553,0.53817028,85004.0,85003.0,0.34]
[1745109094934,0.53817028,85004.0,85003.0,0.35210721]
[1745109102514,0.53817028,85004.0,85003.0,0.40120721]
[1745109102746,0.41872237,85004.0,85003.0,0.40120721]
[1745109117913,0.41872237,85004.0,85003.0,0.40220721]
[1745109118318,0.4177221,85004.0,85003.0,0.44770721]
[1745109129164,0.4084121,85004.0,85003.0,0.44770721]
[1745109132030,0.4084121,85004.0,85003.0,0.35310721]
[1745109134640,0.39958211,85004.0,85003.0,0.35310721]
[1745109135880,0.37951525,85004.0,85003.0,0.35310721]
[1745109140710,0.37951525,85004.0,85003.0,0.01310721]
[1745109141751,0.37951525,85004.0,85003.0,0.14410721]
[1745109141989,0.37011965,85004.0,85003.0,0.14410721]
[1745109142801,0.37011965,85004.0,85003.0,0.48410721]
[1745109145046,0.37011965,85004.0,85003.0,0.35310721]
[1745109145274,0.37011965,85004.0,85003.0,0.48410721]
[1745109145473,0.46661965,85004.0,85003.0,0.48410721]
[1745109145688,0.58606756,85004.0,85003.0,0.71939302]
[1745109145892,0.58606756,85004.0,85003.0,0.58839302]
[1745109146257,0.58606756,85004.0,85003.0,0.35310721]
[1745109146660,0.58606756,85004.0,85003.0,0.24839302]
[1745109146906,0.58606756,85004.0,85003.0,0.01310721]
[1745109147514,0.58606756,85004.0,85003.0,0.35310721]
[1745109150933,0.58606756,85004.0,85003.0,0.35210721]
[1745109151134,0.22298764,85004.0,85002.0,0.22431549]
[1745109151344,0.16834791,85003.0,85002.0,0.01192336]
[1745109151531,0.53605835,85003.0,85000.0,0.24747813]
[1745109151728,0.0489,85002.0,85000.0,0.24747813]
[1745109151902,0.16834791,85001.0,85000.0,0.24747813]
[1745109152120,0.17605835,85001.0,85000.0,0.24747813]
[1745109152562,0.17605835,85001.0,85000.0,0.25957913]
[1745109157051,0.58495835,85001.0,85000.0,0.25957913]
[1745109160970,0.58495835,85001.0,85000.0,0.0238657]
[1745109161380,0.58495835,85001.0,85000.0,0.25915783]
[1745109164010,0.53605835,85001.0,85000.0,0.25915783]
[1745109164215,0.41661044,85001.0,85000.0,0.25915783]
[1745109164413,0.41661044,85001.0,85000.0,0.26015783]
[1745109164615,0.41661044,85001.0,85000.0,0.60015783]
[1745109166603,0.41661044,85001.0,85000.0,0.64655783]
[1745109168755,0.00771044,85001.0,85000.0,0.64655783]
[1745109168928,0.001,85004.0,85003.0,0.23528581]
[1745109169132,0.001,85004.0,85003.0,0.36835816]
[1745109169334,0.001,85004.0,85003.0,0.36600581]
[1745109182300,0.4079,85021.0,85018.0,0.01176221]
[1745109182498,0.4089,85036.0,85035.0,0.57519727]
[1745109183134,0.00091717,85037.0,85035.0,0.57519727]
[1745109183349,0.0008428,85050.0,85049.0,0.23515855]
[1745109184143,0.0008428,85050.0,85049.0,0.2499149]
[1745109198211,1e-08,85053.0,85052.0,0.34]
[1745109198652,1e-08,85053.0,85052.0,0.3867]
[1745109200366,1e-08,85053.0,85052.0,0.4351]
[1745109205117,0.0008428,85077.0,85076.0,0.57508392]
[1745109205348,0.00669585,85077.0,85076.0,0.57508392]
[1745109210056,0.0008428,85077.0,85076.0,0.57508392]
[1745109216395,1e-08,85077.0,85076.0,0.57508392]
[1745109217150,1e-08,85077.0,85076.0,0.57608392]
[1745109218097,0.0008426,85088.0,85085.0,0.34]
[1745109218301,0.00097841,85088.0,85087.0,0.34]
[1745109219263,1e-08,85088.0,85087.0,0.57505353]
[1745109230762,0.16574792,85088.0,85081.0,0.0117535]
[1745109231105,0.16574792,85088.0,85086.0,0.34]
[1745109231106,0.12560119,85087.0,85086.0,0.34]
[1745109231341,0.12560119,85087.0,85085.0,0.2350569]
[1745109231342,0.0453,85086.0,85082.0,0.23506734]
[1745109231534,0.11944791,85085.0,85082.0,0.23506734]
[1745109231705,0.0467,85083.0,85082.0,0.23506734]
[1745109231911,0.21144791,85083.0,85082.0,0.23506734]
[1745109232431,0.21754674,85083.0,85082.0,0.23506734]
[1745109232676,0.0467,85082.0,85081.0,0.23506758]
[1745109232850,0.16614791,85082.0,85081.0,0.23506758]
[1745109233282,0.17224674,85082.0,85081.0,0.23506758]
[1745109233679,0.58114674,85082.0,85081.0,0.23506758]
[1745109237594,0.58114674,85082.0,85077.0,0.24682968]
[1745109237595,0.0467,85081.0,85077.0,0.23507563]
[1745109237901,0.0467,85081.0,85076.0,0.001]
[1745109237902,0.0453,85078.0,85076.0,0.2360827]
[1745109238049,0.16614791,85077.0,85076.0,0.001]
[1745109238257,0.21746725,85077.0,85076.0,0.001]
[1745109238464,0.86144841,85077.0,85076.0,0.001]
[1745109238881,0.62636725,85077.0,85076.0,0.001]
[1745109254325,0.6409081,85077.0,85076.0,0.001]
[1745109254524,0.01175419,85076.0,85069.0,0.006673]
[1745109254732,0.11944791,85075.0,85069.0,0.006673]
[1745109255064,0.13719397,85075.0,85072.0,0.23509347]
[1745109255850,0.13719397,85075.0,85066.0,0.24686572]
[1745109255851,0.01175461,85073.0,85069.0,0.23510252]
[1745109256046,0.0117553,85068.0,85064.0,0.57511545]
[1745109256260,0.06075488,85071.0,85057.0,0.01175682]
[1745109256261,0.049,85061.0,85057.0,0.34]
[1745109256464,0.52834791,85060.0,85057.0,0.34]
[1745109256779,0.00597286,85059.0,85057.0,0.23513592]
[1745109256950,0.11944791,85058.0,85057.0,0.23513592]
[1745109257460,0.12542077,85058.0,85057.0,0.23527172]
[1745109258691,0.12542077,85058.0,85057.0,0.0001358]
[1745109258990,0.12542077,85058.0,85057.0,0.23527172]
[1745109259689,0.53432077,85058.0,85057.0,0.23527172]
[1745109260771,0.53432077,85058.0,85057.0,0.57527172]
[1745109264182,0.41487286,85058.0,85057.0,0.62197172]
[1745109264569,0.41487286,85058.0,85057.0,0.66707172]
[1745109265104,0.4089,85076.0,85075.0,0.57508668]
[1745109265277,0.52834791,85076.0,85075.0,0.57508668]
[1745109266300,0.52934791,85076.0,85075.0,0.57508668]
[1745109266543,0.0455,85075.0,85072.0,0.23509376]
[1745109266682,0.16904791,85074.0,85070.0,0.2351005]
[1745109267035,0.16904791,85074.0,85069.0,0.23510166]
[1745109267243,0.01175488,85071.0,85066.0,0.235111]
[1745109267476,0.11944791,85070.0,85068.0,0.2351058]
[1745109268448,0.4089,85069.0,85068.0,0.2351058]
[1745109268626,0.52834791,85069.0,85068.0,0.2351058]
[1745109270185,0.52834791,85069.0,85068.0,0.5751058]
[1745109270516,0.4089,85069.0,85068.0,0.5751058]
[1745109272650,0.41367229,85069.0,85068.0,0.5751058]
[1745109292523,0.41467229,85069.0,85068.0,0.5751058]
[1745109292654,0.5341202,85069.0,85068.0,0.5751058]
[1745109292857,0.045,85068.0,85059.0,0.01175654]
[1745109293095,0.12429511,85067.0,85066.0,0.57511156]
[1745109293685,0.12429511,85067.0,85066.0,0.23511156]
[1745109297853,0.53319511,85067.0,85066.0,0.23511156]
[1745109300306,0.53319511,85067.0,85065.0,0.23511366]
[1745109303353,0.53319511,85067.0,85054.0,0.36638286]
[1745109303354,0.01175626,85061.0,85054.0,0.36638286]
[1745109303583,0.0455,85059.0,85057.0,0.2352707]
[1745109303734,0.11944791,85058.0,85057.0,0.5752707]
[1745109304114,0.12422032,85058.0,85057.0,0.5752707]
[1745109304910,0.12422032,85058.0,85057.0,0.3401358]
[1745109305112,0.54766117,85058.0,85057.0,0.0001358]
[1745109305312,0.59716117,85058.0,85057.0,0.0001358]
[1745109305611,0.64356117,85058.0,85057.0,0.0001358]
[1745109310262,0.62902032,85058.0,85057.0,0.0001358]
[1745109310514,0.52806042,85058.0,85057.0,0.0001358]
[1745109318666,0.52806042,85058.0,85057.0,0.3401358]
[1745109319930,0.52806042,85058.0,85056.0,0.23513915]
[1745109320333,0.52806042,85058.0,85055.0,0.01175709]
[1745109321324,0.52806042,85058.0,85056.0,0.23513915]
[1745109322620,0.52906042,85058.0,85056.0,0.23513915]
[1745109323596,0.52906042,85058.0,85057.0,0.34]
[1745109324907,0.41467241,85058.0,85057.0,0.34]
[1745109325812,0.41467241,85058.0,85057.0,0.47168]
[1745109330079,0.00577241,85058.0,85057.0,0.47168]
[1745109330438,0.001,85058.0,85057.0,0.47168]
[1745109330878,0.4089,85068.0,85065.0,0.01175571]
[1745109331078,0.52834791,85068.0,85065.0,0.01175571]
[1745109331260,0.00483947,85067.0,85065.0,0.01175571]
[1745109331850,0.02135127,85067.0,85065.0,0.01175571]
[1745109332049,0.02135127,85067.0,85066.0,0.57511156]
[1745109335912,0.43025127,85067.0,85066.0,0.57511156]
[1745109338063,0.43025127,85067.0,85066.0,0.34]
[1745109338424,0.43025127,85067.0,85066.0,0.57511156]
[1745109344962,0.43125127,85067.0,85066.0,0.57511156]
[1745109347670,0.43125127,85067.0,85066.0,0.23511156]
[1745109353635,0.43125127,85067.0,85066.0,0.57511156]
[1745109364292,0.47865127,85067.0,85066.0,0.57511156]
[1745109365094,0.43125127,85067.0,85066.0,0.57511156]
[1745109365895,0.43125127,85067.0,85066.0,0.32878991]
[1745109366598,0.43125127,85067.0,85066.0,0.56390147]
[1745109368375,0.43129649,85067.0,85066.0,0.56390147]
[1745109374972,0.43229649,85067.0,85066.0,0.56390147]
[1745109390849,0.43129649,85067.0,85066.0,0.56390147]
[1745109391050,0.43029649,85067.0,85066.0,0.56390147]
[1745109391206,0.43129649,85067.0,85066.0,0.56390147]
[1745109413432,0.43129649,85067.0,85066.0,0.23511156]
[1745109415508,0.43129649,85067.0,85066.0,0.57511156]
[1745109421331,0.43229649,85067.0,85066.0,0.57511156]
[1745109425310,0.43229649,85067.0,85066.0,0.70575156]
[1745109433369,0.43229649,85067.0,85066.0,0.57511156]
[1745109433667,0.48169649,85067.0,85066.0,0.57511156]
[1745109433881,0.6483444,85067.0,85066.0,0.13064]
[1745109434088,0.0462,85066.0,85065.0,0.23511265]
[1745109434302,0.16564791,85066.0,85065.0,0.23511265]
[1745109434492,0.23640485,85066.0,85065.0,0.57511265]
[1745109435068,0.23640485,85066.0,85064.0,0.24687171]
[1745109435069,0.0494,85064.0,85059.0,0.23513017]
[1745109435308,0.0956,85058.0,85052.0,0.01175751]
[1745109435483,0.01175696,85056.0,85051.0,0.23515302]
[1745109435687,0.0462,85053.0,85050.0,0.23515579]
[1745109435872,0.0462,85051.0,85050.0,0.23515579]
[1745109436073,0.16564791,85051.0,85050.0,0.57515579]
[1745109436332,0.16564791,85051.0,85050.0,0.23515579]
[1745109436510,0.0462,85050.0,85049.0,0.24877734]
[1745109436712,0.0462,85050.0,85049.0,0.01362144]
[1745109436713,0.22758876,85050.0,85049.0,0.01362144]
[1745109436851,0.0474,85046.0,85042.0,0.23517544]
[1745109437060,0.0474,85046.0,85041.0,0.0006836]
[1745109437061,0.23517791,85042.0,85041.0,0.01338367]
[1745109437264,0.85712582,85042.0,85041.0,0.0006836]
[1745109437464,0.87836391,85042.0,85041.0,0.0006836]
[1745109437675,0.01175903,85041.0,85034.0,0.23520003]
[1745109437880,0.16564791,85040.0,85039.0,0.2351862]
[1745109438332,0.186886,85040.0,85039.0,0.2351862]
[1745109438901,0.18693119,85040.0,85039.0,0.2351862]
[1745109439820,0.18693119,85040.0,85037.0,0.24694911]
[1745109440140,0.18693119,85040.0,85039.0,0.2351862]
[1745109441434,0.59583119,85040.0,85039.0,0.2351862]
[1745109445856,0.54963119,85040.0,85039.0,0.5751862]
[1745109448919,0.43018328,85040.0,85039.0,0.5751862]
[1745109449118,0.43018328,85040.0,85039.0,0.5761862]
[1745109453279,0.43018328,85040.0,85039.0,0.001]
[1745109453438,0.43018328,85040.0,85039.0,0.2361862]
[1745109457189,0.43018328,85040.0,85039.0,0.5761862]
[1745109462420,0.43018328,85040.0,85039.0,0.7068662]
[1745109501838,0.43118328,85040.0,85039.0,0.46036215]
[1745109502035,0.0492,85056.0,85055.0,0.23514196]
[1745109502371,0.16864791,85056.0,85055.0,0.23514196]
[1745109502550,0.16964791,85056.0,85055.0,0.23514196]
[1745109503992,0.16964791,85056.0,85055.0,0.57514196]
[1745109504493,0.18817662,85056.0,85055.0,0.57514196]
[1745109506209,0.06872871,85056.0,85055.0,0.57514196]
[1745109506372,0.01952871,85056.0,85055.0,0.57514196]
[1745109506572,0.01952871,85056.0,85055.0,0.70582196]
[1745109506790,0.001,85056.0,85055.0,0.70582196]
[1745109510878,0.4089,85060.0,85059.0,0.5751309]
[1745109511087,0.4582,85068.0,85067.0,0.57510879]
[1745109511233,0.59617662,85068.0,85067.0,0.57510879]
[1745109511433,0.59717662,85068.0,85067.0,0.57510879]
[1745109515637,0.01175613,85062.0,85028.0,0.23521485]
[1745109515834,0.60893192,85068.0,85059.0,0.23512992]
[1745109515835,0.52834791,85061.0,85059.0,0.23512992]
[1745109516042,0.54696303,85061.0,85060.0,0.34]
[1745109516396,0.54696303,85061.0,85059.0,0.23512992]
[1745109516637,0.54696303,85061.0,85054.0,0.23514377]
[1745109516834,0.55871929,85061.0,85055.0,0.34]
[1745109517034,0.11944791,85057.0,85055.0,0.34]
[1745109517405,0.24689212,85058.0,85045.0,0.23516946]
[1745109517406,0.01175778,85050.0,85045.0,0.23516946]
[1745109517614,0.24690706,85053.0,85047.0,0.2351631]
[1745109517615,0.11944791,85049.0,85047.0,0.2351631]
[1745109517814,0.13802919,85049.0,85047.0,0.2351631]
[1745109518215,0.11944791,85049.0,85047.0,0.2351631]
[1745109518714,0.11944791,85049.0,85035.0,0.24786257]
[1745109518715,0.01175861,85044.0,85035.0,0.24786257]
[1745109518911,0.52834791,85043.0,85040.0,0.34007454]
[1745109519110,0.01858128,85042.0,85040.0,7.454e-05]
[1745109519312,0.11944791,85041.0,85040.0,0.34007454]
[1745109519772,0.13802919,85041.0,85040.0,0.34007454]
[1745109523620,0.54692919,85041.0,85040.0,0.34007454]
[1745109524811,0.54692919,85041.0,85040.0,7.454e-05]
[1745109534919,0.54692919,85041.0,85040.0,0.34007454]
[1745109536711,0.42748128,85041.0,85040.0,0.34107454]
[1745109537612,0.42748128,85041.0,85040.0,0.47175454]
[1745109538009,0.01858128,85041.0,85040.0,0.47175454]
[1745109538445,0.4089,85063.0,85060.0,0.0117564]
[1745109538765,0.11944791,85062.0,85060.0,0.0117564]
[1745109538969,0.13795553,85062.0,85060.0,0.0117564]
[1745109539328,0.13795553,85062.0,85061.0,0.23512538]
[1745109541491,0.13895553,85062.0,85061.0,0.23512538]
[1745109544097,0.54785553,85062.0,85061.0,0.23512538]
[1745109550580,0.54785553,85062.0,85061.0,0.57512538]
[1745109570470,0.54785553,85062.0,85061.0,0.34]
[1745109570923,0.54685553,85062.0,85061.0,0.34]
[1745109571289,0.54685553,85062.0,85061.0,0.57512538]
[1745109575910,0.59345553,85062.0,85061.0,0.57512538]
[1745109576126,0.59345553,85062.0,85054.0,0.01175723]
[1745109576127,0.0477,85061.0,85054.0,0.01175723]
[1745109576324,0.0466,85052.0,85047.0,0.0117582]
[1745109576526,0.0466,85052.0,85043.0,0.01175875]
[1745109576527,0.01175806,85048.0,85043.0,0.01175875]
[1745109576724,0.11944791,85047.0,85043.0,0.01175875]
[1745109577151,0.01861599,85046.0,85044.0,0.23517195]
[1745109577331,0.11944791,85045.0,85040.0,7.454e-05]
[1745109577477,0.11944791,85045.0,85041.0,0.34]
[1745109577678,0.42745612,85044.0,85040.0,0.23525582]
[1745109577988,0.0477,85042.0,85040.0,0.23525582]
[1745109578177,0.54690395,85041.0,85040.0,7.454e-05]
[1745109578587,0.59350395,85041.0,85040.0,7.454e-05]
[1745109579201,0.82868462,85041.0,85040.0,7.454e-05]
[1745109585881,0.59350395,85041.0,85040.0,7.454e-05]
[1745109592489,0.54690395,85041.0,85040.0,7.454e-05]
[1745109593830,0.54690395,85041.0,85039.0,0.07895248]
[1745109595195,0.54690395,85041.0,85039.0,0.41895248]
[1745109611651,0.01175917,85040.0,85037.0,0.2351908]
[1745109611856,0.23520184,85034.0,85031.0,0.01351973]
[1745109612209,0.23520184,85034.0,85031.0,0.00088799]
[1745109612210,0.46509432,85032.0,85031.0,0.00088799]
[1745109612433,0.48353061,85032.0,85031.0,0.00088799]
[1745109617595,0.89243061,85032.0,85031.0,0.00088799]
[1745109630898,0.01454085,85017.0,85013.0,0.23525656]
[1745109631101,0.01454085,85015.0,85012.0,0.07357775]
[1745109631399,0.11944791,85014.0,85012.0,0.07357775]
[1745109631615,0.02749168,85013.0,85012.0,0.07357775]
[1745109631910,0.02749168,85013.0,85012.0,0.08598092]
[1745109631911,0.14693959,85013.0,85012.0,0.08598092]
[1745109632775,0.14693959,85013.0,85012.0,0.01240317]
[1745109632990,0.14693959,85013.0,85012.0,0.34]
[1745109633798,0.14693959,85013.0,85012.0,0.35228927]
[1745109635026,0.55583959,85013.0,85012.0,0.35228927]
[1745109636516,0.55583959,85013.0,85012.0,0.24755017]
[1745109638373,0.55583959,85013.0,85012.0,0.01228927]
[1745109638792,0.55583959,85013.0,85011.0,0.004]
[1745109638914,0.11944791,85012.0,85011.0,0.004]
[1745109639293,0.14686298,85012.0,85011.0,0.004]
[1745109639676,0.14686298,85012.0,85011.0,0.01609583]
[1745109639830,0.14686298,85012.0,85011.0,0.004]
[1745109640231,0.61890383,85012.0,85011.0,0.004]
[1745109650961,0.01454085,85006.0,85002.0,0.24705069]
[1745109651266,0.14677778,85005.0,85002.0,0.24705069]
[1745109651964,0.14677778,85005.0,85002.0,0.23528627]
[1745109652275,0.14677778,85005.0,85003.0,0.23528388]
[1745109655595,0.4089,85004.0,85003.0,0.23528388]
[1745109655790,0.52834791,85004.0,85003.0,0.23528388]
[1745109656139,0.55567778,85004.0,85003.0,0.23528388]
[1745109658265,0.55567778,85004.0,85002.0,0.23574019]
[1745109658416,0.11944791,85003.0,85002.0,0.00045392]
[1745109658932,0.14677778,85003.0,85002.0,0.00045392]
[1745109661673,0.55567778,85003.0,85002.0,0.00045392]
[1745109676308,0.79096359,85003.0,85002.0,0.00045392]
[1745109676507,0.55567778,85003.0,85002.0,0.00045392]
[1745109677155,0.80550444,85003.0,85002.0,0.00045392]
[1745109677304,0.85190444,85003.0,85002.0,0.00045392]
[1745109708784,0.80550444,85003.0,85002.0,0.00045392]
[1745109713265,0.57021863,85003.0,85002.0,0.00045392]
[1745109713493,0.55567778,85003.0,85002.0,0.00145392]
[1745109724252,0.56744207,85003.0,84999.0,0.01176484]
[1745109724459,0.56744207,85003.0,84999.0,0.01183941]
[1745109724661,0.56744207,85003.0,84999.0,7.457e-05]
[1745109726166,0.56744207,85003.0,84999.0,0.23537024]
[1745109727504,0.56744207,85003.0,84999.0,7.457e-05]
[1745109727834,0.56744207,85003.0,84999.0,0.23537025]
[1745109730649,0.01176442,85002.0,84999.0,0.23537025]
[1745109730848,0.14673097,85001.0,84999.0,0.23537025]
[1745109731871,0.4089,85000.0,84999.0,0.23537025]
[1745109732072,0.5556462,85000.0,84999.0,7.457e-05]
[1745109734730,0.5556462,85000.0,84999.0,0.43367457]
[1745109734909,0.43619829,85000.0,84999.0,0.43467457]
[1745109736109,0.02729829,85000.0,84999.0,0.43467457]
[1745109736307,0.01454085,85025.0,85021.0,0.0117618]
[1745109736625,0.14336058,85024.0,85022.0,0.23523323]
[1745109737037,0.4089,85023.0,85022.0,0.2503263]
[1745109737235,0.52834791,85023.0,85022.0,0.5903263]
[1745109737470,0.55190238,85023.0,85022.0,0.5903263]
[1745109738014,0.02355447,85023.0,85022.0,0.6387263]
[1745109738564,0.001,85026.0,85025.0,0.57522493]
[1745109739746,0.00145265,85026.0,85025.0,0.57522493]
[1745109743554,0.12090056,85026.0,85025.0,0.57522493]
[1745109744015,0.12090056,85026.0,85022.0,0.01509307]
[1745109744238,0.0117618,85021.0,85016.0,0.23524711]
[1745109744353,0.11944791,85020.0,85016.0,0.23524711]
[1745109744613,0.11944791,85020.0,85009.0,0.01176346]
[1745109744614,0.01176249,85016.0,85006.0,0.14240387]
[1745109744821,0.13398876,85014.0,85011.0,0.23526218]
[1745109745021,0.13398876,85014.0,85012.0,0.34]
[1745109745228,0.02359289,85013.0,85011.0,0.23526218]
[1745109745472,0.11944791,85012.0,85011.0,0.57526218]
[1745109745675,0.11944791,85012.0,85011.0,0.34]
[1745109745847,0.1430408,85012.0,85011.0,0.34]
[1745109748824,0.1430408,85012.0,85011.0,0.11767114]
[1745109749040,0.1430408,85012.0,85010.0,0.23526465]
[1745109749371,0.4089,85011.0,85010.0,0.23526465]
[1745109749581,0.52834791,85011.0,85010.0,0.23526465]
[1745109749836,0.55192348,85011.0,85010.0,0.23526465]
[1745109750832,0.55292348,85011.0,85010.0,0.23526465]
[1745109755469,0.55292348,85011.0,85008.0,0.23527186]
[1745109755832,0.11944791,85010.0,85008.0,0.23527186]
[1745109756164,0.0457,85009.0,85008.0,0.23527186]
[1745109756366,0.16514791,85009.0,85008.0,0.23527186]
[1745109756593,0.18872348,85009.0,85008.0,0.23527186]
[1745109761378,0.59762348,85009.0,85008.0,0.23527186]
[1745109763674,0.55192348,85009.0,85008.0,0.23527186]
[1745109767693,0.55192348,85009.0,85007.0,0.57527474]
[1745109768101,0.55192348,85009.0,85008.0,0.0484]
[1745109768102,0.02357557,85009.0,85008.0,0.0484]
[1745109768282,0.02357557,85009.0,85008.0,0.05075246]
[1745109768458,0.001,85011.0,85010.0,0.34]
[1745109769162,0.001,85011.0,85010.0,0.3884]
[1745109769362,0.4089,85018.0,85015.0,0.01176263]
[1745109769567,0.4089,85018.0,85017.0,0.34]
[1745109770367,0.00045265,85026.0,85025.0,0.23522493]
[1745109770612,0.00045265,85026.0,85025.0,0.57757684]
[1745109770852,0.00045265,85026.0,85025.0,0.57522493]
[1745109791625,0.00045265,85026.0,85025.0,0.70582493]
[1745109792161,0.16850056,85026.0,85025.0,0.34]
[1745109792311,0.16850056,85026.0,85017.0,0.01176235]
[1745109792312,0.01176124,85025.0,85017.0,0.23524652]
[1745109792533,0.01176152,85023.0,85018.0,0.23524259]
[1745109792733,0.02370991,85024.0,85022.0,0.34]
[1745109793057,0.14315782,85023.0,85022.0,0.34]
[1745109793469,0.55205782,85023.0,85022.0,0.34]
[1745109801796,0.55205782,85023.0,85021.0,0.23523553]
[1745109804513,0.55205782,85023.0,85015.0,0.2352526]
[1745109804760,0.0117618,85021.0,85017.0,0.23524559]
[1745109804983,0.43260991,85023.0,85021.0,0.23523445]
[1745109805173,0.11944791,85022.0,85021.0,0.23523445]
[1745109808267,0.52834791,85022.0,85021.0,0.23523445]
[1745109817200,0.52834791,85022.0,85021.0,0.57523445]
[1745109817377,0.00045265,85026.0,85025.0,0.57522493]
[1745109819513,0.00045265,85026.0,85025.0,0.70582493]
[1745109823897,0.11990056,85026.0,85025.0,0.70582493]
[1745109829360,0.11990056,85026.0,85025.0,0.57522493]
[1745109830521,0.11990056,85026.0,85021.0,0.001]
[1745109830709,0.0484,85022.0,85021.0,0.001]
[1745109830871,0.16784791,85022.0,85021.0,0.001]
[1745109831301,0.1915065,85022.0,85021.0,0.001]